[Event "2. Itzehoer Schach Open"]
[Site "Itzehoe, Germany"]
[Date "2023.04.29"]
[Round "1.1"]
[White "Lebiedz, Oliver"]
[Black "Carlstedt, Jonathan"]
[Result "0-1"]
[TimeControl "90 min / 40 Züge + 30 min + 30 Sek pro Zug"]
[WhiteElo "1921"]
[BlackElo "2452"]

1. e4 {[%clk 01:30:43]} {[%emt 00:00:16]} c5 {[%clk 01:27:38]} {[%emt
00:03:23]} 2. Nf3 {[%clk 01:30:00]} {[%emt 00:01:12]} Nc6 {[%clk 01:28:02]}
{[%emt 00:00:06]} 3. d4 {[%clk 01:27:30]} {[%emt 00:03:00]} cxd4 {[%clk
01:28:26]} {[%emt 00:00:06]} 4. Nxd4 {[%clk 01:27:55]} {[%emt 00:00:05]} g6
{[%clk 01:28:51]} {[%emt 00:00:05]} 5. Be3 {[%clk 01:24:34]} {[%emt 00:03:51]}
Bg7 {[%clk 01:29:14]} {[%emt 00:00:08]} 6. Nc3 {[%clk 01:24:07]} {[%emt
00:00:58]} Nf6 {[%clk 01:29:36]} {[%emt 00:00:08]} 7. Nb3 {[%clk 01:22:01]}
{[%emt 00:02:35]} O-O {[%clk 01:29:28]} {[%emt 00:00:37]} 8. Be2 {[%clk
01:20:21]} {[%emt 00:02:10]} d6 {[%clk 01:29:01]} {[%emt 00:00:58]} 9. O-O
{[%clk 01:19:41]} {[%emt 00:01:11]} Be6 {[%clk 01:29:21]} {[%emt 00:00:10]} 10.
Qd2 {[%clk 01:07:23]} {[%emt 00:12:47]} a6 {[%clk 01:26:12]} {[%emt 00:03:40]}
11. Nd4 {[%clk 00:55:42]} {[%emt 00:12:11]} Nxd4 {[%clk 01:24:44]} {[%emt
00:01:58]} 12. Bxd4 {[%clk 00:56:06]} {[%emt 00:00:06]} b5 {[%clk 01:25:10]}
{[%emt 00:00:04]} 13. a3 {[%clk 00:55:39]} {[%emt 00:00:57]} Rc8 {[%clk
01:24:53]} {[%emt 00:00:47]} 14. Rac1 {[%clk 00:51:08]} {[%emt 00:05:01]} Bc4
{[%clk 01:18:19]} {[%emt 00:07:03]} 15. Rfd1 {[%clk 00:49:59]} {[%emt
00:01:39]} Qd7 {[%clk 01:09:03]} {[%emt 00:09:47]} 16. Bf3 {[%clk 00:46:14]}
{[%emt 00:04:14]} Qc7 {[%clk 01:06:51]} {[%emt 00:02:42]} 17. Nd5 {[%clk
00:40:05]} {[%emt 00:06:39]} Bxd5 {[%clk 01:07:13]} {[%emt 00:00:08]} 18. exd5
{[%clk 00:40:28]} {[%emt 00:00:07]} Nd7 {[%clk 01:07:38]} {[%emt 00:00:05]} 19.
Bxg7 {[%clk 00:39:23]} {[%emt 00:01:35]} Kxg7 {[%clk 01:08:06]} {[%emt
00:00:02]} 20. Qd4+ {[%clk 00:30:45]} {[%emt 00:09:07]} Ne5 {[%clk 01:04:54]}
{[%emt 00:03:43]} 21. Be2 {[%clk 00:29:09]} {[%emt 00:02:05]} Qc5 {[%clk
01:05:10]} {[%emt 00:00:14]} 22. f4 {[%clk 00:20:29]} {[%emt 00:09:11]} Qxd4+
{[%clk 01:05:34]} {[%emt 00:00:06]} 23. Rxd4 {[%clk 00:20:56]} {[%emt
00:00:02]} Nd7 {[%clk 01:05:56]} {[%emt 00:00:08]} 24. a4 {[%clk 00:19:54]}
{[%emt 00:01:33]} Nc5 {[%clk 01:04:42]} {[%emt 00:01:43]} 25. Ra1 {[%clk
00:10:24]} {[%emt 00:10:00]} bxa4 {[%clk 01:04:22]} {[%emt 00:00:50]} 26. Rb4
{[%clk 00:08:23]} {[%emt 00:02:30]} Rb8 {[%clk 01:04:40]} {[%emt 00:00:12]} 27.
c3 {[%clk 00:08:40]} {[%emt 00:00:14]} Kf6 {[%clk 01:03:49]} {[%emt 00:01:21]}
28. Kf2 {[%clk 00:07:41]} {[%emt 00:01:29]} e6 {[%clk 00:59:18]} {[%emt
00:05:01]} 29. dxe6 {[%clk 00:06:11]} {[%emt 00:02:00]} fxe6 {[%clk 00:59:43]}
{[%emt 00:00:05]} 30. Ke3 {[%clk 00:06:03]} {[%emt 00:00:37]} d5 {[%clk
00:59:47]} {[%emt 00:00:25]} 31. Bd1 {[%clk 00:06:06]} {[%emt 00:00:27]} a5
{[%clk 00:58:34]} {[%emt 00:01:44]} 32. Rxb8 {[%clk 00:05:17]} {[%emt
00:01:19]} Rxb8 {[%clk 00:59:02]} {[%emt 00:00:02]} 33. Ra2 {[%clk 00:05:08]}
{[%emt 00:00:39]} h5 {[%clk 00:55:41]} {[%emt 00:03:50]} 34. Kd4 {[%clk
00:02:54]} {[%emt 00:02:45]} Rb5 {[%clk 00:47:41]} {[%emt 00:08:29]} 35. Be2
{[%clk 00:02:53]} {[%emt 00:00:31]} Nb3+ {[%clk 00:48:09]} {[%emt 00:00:03]} 36.
Ke3 {[%clk 00:03:13]} {[%emt 00:00:09]} d4+ {[%clk 00:48:34]} {[%emt 00:00:05]}
37. cxd4 {[%clk 00:03:08]} {[%emt 00:00:35]} Rb4 {[%clk 00:49:00]} {[%emt
00:00:05]} 38. Bd1 {[%clk 00:02:54]} {[%emt 00:00:45]} Nxd4 {[%clk 00:49:10]}
{[%emt 00:00:19]} 39. Bxa4 {[%clk 00:02:18]} {[%emt 00:01:06]} Nf5+ {[%clk
00:46:21]} {[%emt 00:03:19]} 40. Kf3 {[%clk 00:02:33]} {[%emt 00:00:15]} g5
{[%clk 00:43:09]} {[%emt 00:03:42]} 41. fxg5+ {[%clk 00:29:41]} {[%emt
00:03:21]} Kxg5 {[%clk 01:13:36]} {[%emt 00:00:03]} 42. g3 {[%clk 00:19:39]}
{[%emt 00:10:33]} Rc4 {[%clk 01:13:53]} {[%emt 00:00:13]} 43. Bd7 {[%clk
00:17:06]} {[%emt 00:03:02]} Rc5 {[%clk 01:12:00]} {[%emt 00:02:22]} 44. Ra4
{[%clk 00:16:31]} {[%emt 00:01:07]} Kf6 {[%clk 01:10:56]} {[%emt 00:01:33]} 45.
b4 {[%clk 00:13:32]} {[%emt 00:03:30]} Rc3+ {[%clk 01:08:10]} {[%emt 00:03:15]}
46. Kf2 {[%clk 00:11:59]} {[%emt 00:02:01]} Rc2+ {[%clk 01:07:51]} {[%emt
00:00:51]} 47. Kg1 {[%clk 00:12:14]} {[%emt 00:00:13]} Ne3 {[%clk 01:07:11]}
{[%emt 00:01:12]} 48. bxa5 {[%clk 00:10:23]} {[%emt 00:02:21]} Rg2+ {[%clk
00:57:34]} {[%emt 00:10:06]} 49. Kh1 {[%clk 00:10:48]} {[%emt 00:00:06]} Rd2
{[%clk 00:57:58]} {[%emt 00:00:05]} 50. Rf4+ {[%clk 00:09:59]} {[%emt
00:01:19]} Ke5 {[%clk 00:58:23]} {[%emt 00:00:06]} 51. Ba4 {[%clk 00:10:17]}
{[%emt 00:00:12]} Ra2 {[%clk 00:58:47]} {[%emt 00:00:05]} 52. h3 {[%clk
00:09:49]} {[%emt 00:00:58]} Nf5 {[%clk 00:58:13]} {[%emt 00:01:05]} 53. Rb4
{[%clk 00:08:39]} {[%emt 00:01:39]} Nxg3+ {[%clk 00:58:22]} {[%emt 00:00:21]}
54. Kg1 {[%clk 00:09:05]} {[%emt 00:00:04]} Ne2+ {[%clk 00:57:33]} {[%emt
00:01:18]} 55. Kf1 {[%clk 00:08:30]} {[%emt 00:01:06]} Nf4 {[%clk 00:57:34]}
{[%emt 00:00:29]} 56. a6 {[%clk 00:08:37]} {[%emt 00:00:24]} Ra1+ {[%clk
00:57:52]} {[%emt 00:00:12]} 0-1

[Event "2. Itzehoer Schach Open"]
[Site "Itzehoe, Germany"]
[Date "2023.04.29"]
[Round "1.3"]
[White "Freitag, Christian"]
[Black "Knuedel, Torben"]
[Result "1/2-1/2"]
[TimeControl "90 min / 40 Züge + 30 min + 30 Sek pro Zug"]
[WhiteElo "1886"]
[BlackElo "2250"]

1. Nf3 {[%clk 01:29:55]} {[%emt 00:01:03]} Nf6 {[%clk 01:30:50]} {[%emt
00:00:11]} 2. g3 {[%clk 01:30:18]} {[%emt 00:00:06]} e6 {[%clk 01:31:14]}
{[%emt 00:00:07]} 3. Bg2 {[%clk 01:30:44]} {[%emt 00:00:04]} d5 {[%clk
01:31:41]} {[%emt 00:00:04]} 4. O-O {[%clk 01:31:07]} {[%emt 00:00:06]} Be7
{[%clk 01:32:07]} {[%emt 00:00:04]} 5. c4 {[%clk 01:29:12]} {[%emt 00:02:25]}
O-O {[%clk 01:32:31]} {[%emt 00:00:06]} 6. cxd5 {[%clk 01:28:26]} {[%emt
00:01:16]} exd5 {[%clk 01:32:32]} {[%emt 00:00:29]} 7. d4 {[%clk 01:28:34]}
{[%emt 00:00:22]} c6 {[%clk 01:29:54]} {[%emt 00:03:08]} 8. Nc3 {[%clk
01:28:34]} {[%emt 00:00:29]} Bf5 {[%clk 01:29:57]} {[%emt 00:00:27]} 9. Qb3
{[%clk 01:23:20]} {[%emt 00:05:44]} Qb6 {[%clk 01:27:18]} {[%emt 00:03:09]} 10.
Qxb6 {[%clk 01:21:54]} {[%emt 00:01:57]} axb6 {[%clk 01:27:46]} {[%emt
00:00:02]} 11. Bd2 {[%clk 01:18:19]} {[%emt 00:04:04]} b5 {[%clk 01:23:55]}
{[%emt 00:04:21]} 12. a3 {[%clk 01:12:56]} {[%emt 00:05:53]} h6 {[%clk
01:22:36]} {[%emt 00:01:49]} 13. Nh4 {[%clk 01:07:14]} {[%emt 00:06:12]} Be6
{[%clk 01:15:18]} {[%emt 00:07:48]} 14. Rfe1 {[%clk 01:01:15]} {[%emt
00:06:28]} Na6 {[%clk 01:11:35]} {[%emt 00:04:14]} 15. Nf3 {[%clk 00:48:31]}
{[%emt 00:13:14]} b4 {[%clk 01:08:57]} {[%emt 00:03:09]} 16. axb4 {[%clk
00:44:57]} {[%emt 00:04:04]} Nxb4 {[%clk 01:09:12]} {[%emt 00:00:15]} 17. Rec1
{[%clk 00:44:49]} {[%emt 00:00:38]} Ne4 {[%clk 01:06:34]} {[%emt 00:03:09]} 18.
Nxe4 {[%clk 00:39:11]} {[%emt 00:06:08]} dxe4 {[%clk 01:06:52]} {[%emt
00:00:11]} 19. Ne5 {[%clk 00:38:46]} {[%emt 00:00:55]} Rxa1 {[%clk 00:58:21]}
{[%emt 00:09:03]} 20. Rxa1 {[%clk 00:38:16]} {[%emt 00:00:59]} Nc2 {[%clk
00:58:40]} {[%emt 00:00:10]} 21. Ra7 {[%clk 00:33:38]} {[%emt 00:05:08]} Nxd4
{[%clk 00:55:40]} {[%emt 00:03:30]} 22. e3 {[%clk 00:30:07]} {[%emt 00:04:02]}
Nb3 {[%clk 00:38:47]} {[%emt 00:17:23]} 23. Bc3 {[%clk 00:29:59]} {[%emt
00:00:37]} Bf6 {[%clk 00:28:26]} {[%emt 00:10:51]} 24. Rxb7 {[%clk 00:28:25]}
{[%emt 00:02:05]} Ra8 {[%clk 00:22:04]} {[%emt 00:06:52]} 25. h3 {[%clk
00:19:02]} {[%emt 00:09:53]} Bxe5 {[%clk 00:20:01]} {[%emt 00:02:33]} 26. Bxe5
{[%clk 00:19:14]} {[%emt 00:00:16]} Nc5 {[%clk 00:20:24]} {[%emt 00:00:08]} 27.
Rb8+ {[%clk 00:14:21]} {[%emt 00:05:23]} Rxb8 {[%clk 00:20:46]} {[%emt
00:00:08]} 28. Bxb8 {[%clk 00:14:46]} {[%emt 00:00:04]} Bd5 {[%clk 00:18:45]}
{[%emt 00:02:31]} 29. Be5 {[%clk 00:13:24]} {[%emt 00:01:52]} f5 {[%clk
00:11:58]} {[%emt 00:07:18]} 30. Bf1 {[%clk 00:11:38]} {[%emt 00:02:15]} Kf7
{[%clk 00:09:11]} {[%emt 00:03:17]} 31. Be2 {[%clk 00:10:49]} {[%emt 00:01:19]}
Nd3 {[%clk 00:08:12]} {[%emt 00:01:29]} 32. Bc3 {[%clk 00:10:39]} {[%emt
00:00:40]} g6 {[%clk 00:05:18]} {[%emt 00:03:25]} 33. Bxd3 {[%clk 00:06:45]}
{[%emt 00:04:24]} exd3 {[%emt 00:00:34]} 34. f4 {[%clk 00:06:42]} Bf3 {[%clk
00:03:28]} {[%emt 00:02:48]} 35. Kf2 {[%clk 00:05:30]} {[%emt 00:01:41]} Be2
{[%clk 00:03:41]} {[%emt 00:00:17]} 36. Ke1 {[%clk 00:04:12]} {[%emt 00:01:48]}
Ke6 {[%clk 00:03:53]} {[%emt 00:00:19]} 37. Bg7 {[%clk 00:04:11]} {[%emt
00:00:31]} Kd5 {[%clk 00:04:04]} {[%emt 00:00:19]} 38. Bc3 {[%clk 00:03:12]}
{[%emt 00:01:29]} Bh5 {[%clk 00:03:37]} {[%emt 00:00:56]} 39. Bd2 {[%clk
00:02:01]} {[%emt 00:01:41]} Bf3 {[%clk 00:03:11]} {[%emt 00:00:55]} 40. Kf2
{[%clk 00:02:03]} {[%emt 00:00:29]} Bd1 {[%clk 00:03:03]} {[%emt 00:00:38]} 41.
Ke1 {[%clk 00:01:52]} {[%emt 00:00:39]} Be2 {[%clk 00:30:21]} {[%emt 00:03:14]}
42. Bc3 {[%clk 00:30:58]} {[%emt 00:01:24]} c5 {[%clk 00:27:07]} {[%emt
00:03:44]} 43. Bd2 {[%clk 00:30:46]} {[%emt 00:00:42]} Bf3 {[%clk 00:23:16]}
{[%emt 00:04:21]} 44. Kf2 {[%clk 00:29:39]} {[%emt 00:01:37]} Bd1 {[%clk
00:22:49]} {[%emt 00:00:57]} 45. Ke1 {[%clk 00:29:46]} {[%emt 00:00:22]} Ba4
{[%clk 00:23:15]} {[%emt 00:00:05]} 46. Bc3 {[%clk 00:29:57]} {[%emt 00:00:19]}
Bb5 {[%clk 00:23:03]} {[%emt 00:00:42]} 47. Bd2 {[%clk 00:28:17]} {[%emt
00:02:10]} Bc6 {[%clk 00:22:51]} {[%emt 00:00:42]} 48. Bc3 {[%clk 00:28:34]}
{[%emt 00:00:13]} Bb7 {[%clk 00:23:18]} {[%emt 00:00:04]} 49. Bd2 {[%clk
00:28:44]} {[%emt 00:00:19]} Kc4 {[%clk 00:23:42]} {[%emt 00:00:05]} 50. Bc3
{[%clk 00:28:55]} {[%emt 00:00:20]} Bg2 {[%clk 00:24:06]} {[%emt 00:00:06]} 51.
h4 {[%clk 00:29:00]} {[%emt 00:00:25]} Bc6 {[%clk 00:24:23]} {[%emt 00:00:13]}
52. Kd2 {[%clk 00:28:41]} {[%emt 00:00:48]} Kd5 {[%clk 00:23:56]} {[%emt
00:00:57]} 53. Ke1 {[%clk 00:27:23]} {[%emt 00:01:47]} Ke4 {[%clk 00:23:50]}
{[%emt 00:00:36]} 54. Kf2 {[%clk 00:27:39]} {[%emt 00:00:14]} Bb5 {[%clk
00:23:58]} {[%emt 00:00:22]} 55. Bd2 {[%clk 00:27:14]} {[%emt 00:00:54]} Kd5
{[%clk 00:23:41]} {[%emt 00:00:48]} 56. Ke1 {[%clk 00:27:19]} {[%emt 00:00:25]}
Kc4 {[%clk 00:24:06]} {[%emt 00:00:05]} 57. Bc3 {[%clk 00:27:23]} {[%emt
00:00:26]} Kb3 {[%clk 00:24:09]} {[%emt 00:00:27]} 58. Kd2 {[%clk 00:27:39]}
{[%emt 00:00:14]} c4 {[%clk 00:23:47]} {[%emt 00:00:53]} 59. Bg7 {[%clk
00:27:24]} {[%emt 00:00:44]} Bc6 {[%clk 00:24:11]} {[%emt 00:00:07]} 60. Bc3
{[%clk 00:27:15]} {[%emt 00:00:39]} Ka2 {[%clk 00:23:48]} {[%emt 00:00:52]} 61.
Bg7 {[%clk 00:26:46]} {[%emt 00:00:59]} Kb1 {[%clk 00:23:47]} {[%emt 00:00:31]}
62. Bc3 {[%clk 00:26:09]} {[%emt 00:01:06]} Ka2 {[%clk 00:23:52]} {[%emt
00:00:25]} 63. Bg7 {[%clk 00:26:25]} {[%emt 00:00:15]} Kb3 {[%clk 00:24:16]}
{[%emt 00:00:06]} 64. Bc3 {[%clk 00:26:50]} {[%emt 00:00:05]} Ka4 {[%clk
00:22:53]} {[%emt 00:01:54]} 65. Bg7 {[%clk 00:27:10]} {[%emt 00:00:10]} Kb4
{[%clk 00:22:13]} {[%emt 00:01:09]} 66. Bc3+ {[%clk 00:27:06]} {[%emt
00:00:35]} Kc5 {[%clk 00:22:38]} {[%emt 00:00:05]} 67. Ke1 {[%clk 00:27:24]}
{[%emt 00:00:12]} Kd5 {[%clk 00:23:01]} {[%emt 00:00:07]} 68. Bd2 {[%clk
00:27:26]} {[%emt 00:00:28]} Ke6 {[%clk 00:23:13]} {[%emt 00:00:18]} 69. Bc3
{[%clk 00:27:33]} {[%emt 00:00:22]} Kf7 {[%clk 00:23:38]} {[%emt 00:00:06]} 70.
Be5 {[%clk 00:27:23]} {[%emt 00:00:40]} Bd5 {[%clk 00:23:56]} {[%emt 00:00:12]}
71. Bc3 {[%clk 00:27:08]} {[%emt 00:00:45]} g5 {[%clk 00:24:02]} {[%emt
00:00:24]} 72. hxg5 {[%clk 00:24:47]} {[%emt 00:02:52]} hxg5 {[%clk 00:24:27]}
{[%emt 00:00:05]} 73. Kf2 {[%clk 00:24:53]} {[%emt 00:00:23]} Kg6 {[%clk
00:24:52]} {[%emt 00:00:05]} 74. Bd2 {[%clk 00:25:03]} {[%emt 00:00:20]} Bc6
{[%clk 00:24:20]} {[%emt 00:01:02]} 75. Bc3 {[%clk 00:25:19]} {[%emt 00:00:14]}
Bb7 {[%clk 00:24:45]} {[%emt 00:00:05]} 76. Bd2 {[%clk 00:25:44]} {[%emt
00:00:04]} g4 {[%clk 00:25:09]} {[%emt 00:00:06]} 77. Bc3 {[%clk 00:25:54]}
{[%emt 00:00:21]} Kf7 {[%clk 00:25:36]} {[%emt 00:00:03]} 78. Bd2 {[%clk
00:26:05]} {[%emt 00:00:18]} Ke6 {[%clk 00:26:03]} {[%emt 00:00:03]} 79. Bc3
{[%clk 00:26:15]} {[%emt 00:00:21]} Kd5 {[%clk 00:26:29]} {[%emt 00:00:04]} 80.
Bd2 {[%clk 00:26:21]} {[%emt 00:00:23]} Bc8 {[%clk 00:26:37]} {[%emt 00:00:23]}
81. Bc3 {[%clk 00:26:43]} {[%emt 00:00:08]} Kc6 {[%clk 00:27:02]} {[%emt
00:00:05]} 82. Ke1 {[%clk 00:26:59]} {[%emt 00:00:14]} Be6 {[%clk 00:27:26]}
{[%emt 00:00:06]} 83. Kf2 {[%clk 00:27:22]} {[%emt 00:00:07]} Kb5 {[%clk
00:27:24]} {[%emt 00:00:32]} 84. Ke1 {[%clk 00:27:39]} {[%emt 00:00:12]} Bd5
{[%clk 00:27:46]} {[%emt 00:00:08]} 85. Kd2 {[%clk 00:28:02]} {[%emt 00:00:07]}
Be6 {[%clk 00:25:21]} {[%emt 00:00:06]} 1/2-1/2

[Event "2. Itzehoer Schach Open"]
[Site "Itzehoe, Germany"]
[Date "2023.04.29"]
[Round "1.8"]
[White "Pitic, Jasmin"]
[Black "Zoellner, Bente"]
[Result "1-0"]
[TimeControl "90 min / 40 Züge + 30 min + 30 Sek pro Zug"]
[WhiteElo "2067"]
[BlackElo "1805"]

1. c4 {[%clk 01:30:58]} {[%emt 00:00:01]} c5 {[%clk 01:30:51]} {[%emt
00:00:09]} 2. Nf3 {[%clk 01:31:16]} {[%emt 00:00:12]} Nc6 {[%clk 01:30:59]}
{[%emt 00:00:22]} 3. d4 {[%clk 01:31:35]} {[%emt 00:00:12]} cxd4 {[%clk
01:31:06]} {[%emt 00:00:23]} 4. Nxd4 {[%clk 01:32:01]} {[%emt 00:00:04]} Nf6
{[%clk 01:30:54]} {[%emt 00:00:40]} 5. Nc3 {[%clk 01:32:14]} {[%emt 00:00:18]}
g6 {[%clk 01:30:51]} {[%emt 00:00:32]} 6. e4 {[%clk 01:32:05]} {[%emt
00:00:39]} d6 {[%clk 01:30:32]} {[%emt 00:00:49]} 7. Be2 {[%clk 01:32:18]}
{[%emt 00:00:17]} Bg7 {[%clk 01:30:47]} {[%emt 00:00:15]} 8. Be3 {[%clk
01:32:24]} {[%emt 00:00:24]} O-O {[%clk 01:29:29]} {[%emt 00:01:48]} 9. O-O
{[%clk 01:32:08]} {[%emt 00:00:47]} a5 {[%clk 01:25:30]} {[%emt 00:04:29]} 10.
f3 {[%clk 01:29:58]} {[%emt 00:02:40]} Qb6 {[%clk 01:18:45]} {[%emt 00:07:14]}
11. Ncb5 {[%clk 01:27:55]} {[%emt 00:02:33]} Nxd4 {[%clk 01:15:30]} {[%emt
00:03:46]} 12. Bxd4 {[%clk 01:28:01]} {[%emt 00:00:23]} Qc6 {[%clk 01:15:05]}
{[%emt 00:00:55]} 13. Qd2 {[%clk 01:27:11]} {[%emt 00:01:21]} Be6 {[%clk
01:13:24]} {[%emt 00:02:11]} 14. Rac1 {[%clk 01:26:47]} {[%emt 00:00:54]} Nd7
{[%clk 01:11:35]} {[%emt 00:02:18]} 15. Be3 {[%clk 01:25:50]} {[%emt 00:01:28]}
Nc5 {[%clk 01:09:45]} {[%emt 00:02:19]} 16. b3 {[%clk 01:23:44]} {[%emt
00:02:37]} Qb6 {[%clk 00:58:03]} {[%emt 00:12:13]} 17. Rfe1 {[%clk 01:20:16]}
{[%emt 00:03:57]} Bd7 {[%clk 00:53:05]} {[%emt 00:05:28]} 18. Nc3 {[%clk
01:19:52]} {[%emt 00:00:54]} Bc6 {[%clk 00:52:12]} {[%emt 00:01:23]} 19. Bf1
{[%clk 01:19:10]} {[%emt 00:01:11]} Qb4 {[%clk 00:50:31]} {[%emt 00:02:10]} 20.
Nd5 {[%clk 01:14:59]} {[%emt 00:04:43]} Bxd5 {[%clk 00:49:47]} {[%emt
00:01:13]} 21. exd5 {[%clk 01:15:12]} {[%emt 00:00:18]} Qxd2 {[%clk 00:48:53]}
{[%emt 00:01:23]} 22. Bxd2 {[%clk 01:15:40]} {[%emt 00:00:02]} Bd4+ {[%clk
00:48:22]} {[%emt 00:01:00]} 23. Be3 {[%clk 01:14:59]} {[%emt 00:01:12]} Bxe3+
{[%clk 00:47:43]} {[%emt 00:01:09]} 24. Rxe3 {[%clk 01:15:28]} {[%emt
00:00:02]} Rfe8 {[%clk 00:47:43]} {[%emt 00:00:30]} 25. Rce1 {[%clk 01:14:51]}
{[%emt 00:01:07]} Kf8 {[%clk 00:47:41]} {[%emt 00:00:32]} 26. g4 {[%clk
01:13:24]} {[%emt 00:01:57]} Ra6 {[%clk 00:44:34]} {[%emt 00:03:36]} 27. f4
{[%clk 01:10:01]} {[%emt 00:03:53]} Rb6 {[%clk 00:35:44]} {[%emt 00:09:21]} 28.
Bd3 {[%clk 01:04:48]} {[%emt 00:05:42]} a4 {[%clk 00:32:34]} {[%emt 00:03:42]}
29. Bc2 {[%clk 01:03:55]} {[%emt 00:01:22]} Ra8 {[%clk 00:30:45]} {[%emt
00:02:18]} 30. f5 {[%clk 00:28:41]} {[%emt 00:35:45]} axb3 {[%clk 00:27:19]}
{[%emt 00:03:56]} 31. axb3 {[%clk 00:29:00]} {[%emt 00:00:11]} Ra2 {[%clk
00:26:39]} {[%emt 00:01:10]} 32. Bd1 {[%clk 00:25:27]} {[%emt 00:04:03]} Rb2
{[%clk 00:22:48]} {[%emt 00:04:21]} 33. Rxe7 {[%clk 00:25:09]} {[%emt
00:00:47]} Nxb3 {[%clk 00:18:21]} {[%emt 00:04:58]} 34. f6 {[%clk 00:24:53]}
{[%emt 00:00:46]} 1-0

[Event "2. Itzehoer Schach Open"]
[Site "Itzehoe, Germany"]
[Date "2023.04.29"]
[Round "1.10"]
[White "Neumann, Frank"]
[Black "Vieito, Luis-Maria"]
[Result "0-1"]
[TimeControl "90 min / 40 Züge + 30 min + 30 Sek pro Zug"]
[WhiteElo "2030"]
[BlackElo "1773"]

1. d4 {[%clk 01:30:55]} {[%emt 00:00:04]} Nf6 {[%clk 01:30:59]} {[%emt
00:00:02]} 2. Nf3 {[%clk 01:31:19]} {[%emt 00:00:06]} e6 {[%clk 01:31:15]}
{[%emt 00:00:15]} 3. g3 {[%clk 01:31:38]} {[%emt 00:00:10]} b6 {[%clk
01:31:36]} {[%emt 00:00:09]} 4. Bg2 {[%clk 01:32:04]} {[%emt 00:00:05]} Bb7
{[%clk 01:31:57]} {[%emt 00:00:08]} 5. O-O {[%clk 01:32:31]} {[%emt 00:00:04]}
Be7 {[%clk 01:32:18]} {[%emt 00:00:09]} 6. c4 {[%clk 01:32:57]} {[%emt
00:00:05]} O-O {[%clk 01:32:38]} {[%emt 00:00:09]} 7. Qc2 {[%clk 01:33:11]}
{[%emt 00:00:15]} c5 {[%clk 01:25:37]} {[%emt 00:07:31]} 8. dxc5 {[%clk
01:32:23]} {[%emt 00:01:18]} Bxc5 {[%clk 01:25:24]} {[%emt 00:00:43]} 9. Nc3
{[%clk 01:32:28]} {[%emt 00:00:25]} Nc6 {[%clk 01:24:05]} {[%emt 00:01:49]} 10.
b3 {[%clk 01:30:41]} {[%emt 00:02:17]} a6 {[%clk 01:11:04]} {[%emt 00:13:32]}
11. Bb2 {[%clk 01:30:46]} {[%emt 00:00:24]} Qe7 {[%clk 01:08:32]} {[%emt
00:03:02]} 12. Na4 {[%clk 01:20:55]} {[%emt 00:10:22]} d5 {[%clk 01:02:16]}
{[%emt 00:06:43]} 13. Nxc5 {[%clk 01:17:25]} {[%emt 00:04:02]} Qxc5 {[%clk
01:01:32]} {[%emt 00:01:15]} 14. Rac1 {[%clk 01:14:14]} {[%emt 00:03:40]} Rac8
{[%clk 00:53:20]} {[%emt 00:08:42]} 15. Bxf6 {[%clk 01:04:15]} {[%emt
00:10:29]} gxf6 {[%clk 00:53:33]} {[%emt 00:00:18]} 16. cxd5 {[%clk 00:59:09]}
{[%emt 00:05:35]} Qxd5 {[%clk 00:53:17]} {[%emt 00:00:46]} 17. Qb2 {[%clk
00:56:24]} {[%emt 00:03:16]} Ne5 {[%clk 00:43:45]} {[%emt 00:10:01]} 18. Rcd1
{[%clk 00:48:30]} {[%emt 00:08:24]} Qc6 {[%clk 00:38:01]} {[%emt 00:06:13]} 19.
Ne1 {[%clk 00:46:54]} {[%emt 00:02:06]} Qc7 {[%clk 00:37:37]} {[%emt 00:00:55]}
20. Bxb7 {[%clk 00:46:29]} {[%emt 00:00:55]} Qxb7 {[%clk 00:38:05]} {[%emt
00:00:02]} 21. Nd3 {[%clk 00:46:41]} {[%emt 00:00:19]} Qe4 {[%clk 00:36:19]}
{[%emt 00:02:16]} 22. Nf4 {[%clk 00:43:28]} {[%emt 00:03:42]} Rc2 {[%clk
00:35:29]} {[%emt 00:01:20]} 23. Qa3 {[%emt 00:12:14]} Rxe2 {[%clk 00:24:41]}
24. Nxe2 {[%clk 00:41:39]} {[%emt 00:01:52]} Nf3+ {[%clk 00:24:57]} {[%emt
00:00:14]} 25. Kg2 {[%clk 00:40:19]} {[%emt 00:01:50]} Ne1+ {[%clk 00:25:04]}
{[%emt 00:00:22]} 26. Kh3 {[%clk 00:40:37]} {[%emt 00:00:13]} Qg2+ {[%clk
00:23:34]} {[%emt 00:02:00]} 27. Kg4 {[%clk 00:31:45]} {[%emt 00:09:21]} h5+
{[%clk 00:22:35]} {[%emt 00:01:30]} 28. Kxh5 {[%clk 00:31:13]} {[%emt
00:01:02]} Qh3# {[%clk 00:52:54]} {[%emt 00:05:37]} 0-1